Cogmind - Beta 10.2 @@@ ROGUE MODE // 2021.11.29 @ 19:01:24 Player: SmallBrainBigPP Result: Self-destructed Performance ------------- Evolutions (1) 500 Regions Visited (3) 600 Robots Destroyed (2) 10 Value Destroyed (41) 41 Prototype IDs (2) 40 Alien Tech Used (0) 0 Bonus (0) 0 TOTAL SCORE: 1191 Bonus ------- None Cogmind --------- Core Integrity 371/400 Matter 6/300 Energy 250/250 System Corruption 0% Temperature Cool (0) Movement Rolling (100) Location -9/Materials Parts ------- > --- POWER (2) -------- Ion Engine > --- PROPULSION (2) --- Compact Wheel Compact Wheel > --- UTILITY (3) ------ Small Storage Unit > --- WEAPON (2) ------- EM Pulse Gun Rocket Launcher > --- INVENTORY (6) ---- Light Treads Light Treads EM Pulse Gun Peak State ------------ > --- POWER ------------ Ion Engine > --- PROPULSION ------- Compact Wheel Compact Wheel > --- UTILITY ---------- Small Storage Unit > --- WEAPON ----------- EM Pulse Gun Rocket Launcher > --- INVENTORY -------- Light Treads Light Treads EM Pulse Gun [Rating: 7] Favorites ----------- Power Ion Engine Engine Ion Engine Propulsion Compact Wheel Treads Light Treads Wheel Compact Wheel Utility Small Storage Unit Storage Small Storage Unit Weapon EM Pulse Gun Energy Gun EM Pulse Gun Launcher Rocket Launcher Build | -11 -10 -10 -9 ------- Run | Scr Mat Min Mat Slots Evolved 2 | . . . 2 Power 1 | . . . 1 Propulsion . | . . . . Utility 1 | . . . 1 Weapon . | . . . . Parts Attached 12 | 9 . 2 1 Power 1 | 1 . . . Engine 1 | 1 . . . Core . | . . . . Reactor . | . . . . Propulsion 5 | 5 . . . Treads 2 | 2 . . . Leg . | . . . . Wheel 3 | 3 . . . Hover . | . . . . Flight . | . . . . Utility 1 | 1 . . . Device . | . . . . Storage 1 | 1 . . . Processor . | . . . . Hackware . | . . . . Protection . | . . . . Artifact . | . . . . Weapon 5 | 2 . 2 1 Energy Gun 3 | 2 . 1 . Energy Cannon . | . . . . Ballistic Gun . | . . . . Ballistic Cannon . | . . . . Launcher 2 | . . 1 1 Special Weapon . | . . . . Impact Weapon . | . . . . Slashing Weapon . | . . . . Piercing Weapon . | . . . . Special Melee Weapon . | . . . . Unidentified Prototypes . | . . . . Parts Lost . | . . . . Power . | . . . . Propulsion . | . . . . Utility . | . . . . Weapon . | . . . . Highest Loss Streak . | . . . . Average Slot Usage (%) 74 | . 85 85 66 Engine 12 | . 14 14 11 Wheel 24 | . 28 28 22 Storage 12 | . 14 14 11 Energy Gun 20 | . 28 24 16 Launcher 4 | . . 4 5 Naked Turns . | . . . . Heaviest Build 15 | 13 13 15 15 Greatest Support 40 | 40 32 32 32 Greatest Overweight (x) 1 | 1 . . . Average Overweight (x) . | . . . . Largest Inventory Capacity 6 | 6 6 6 6 Average Capacity 5 | 5 6 6 6 Most Carried 4 | 4 2 4 3 Average Carried 2 | 1 2 2 3 Final Capacity 6 | 6 6 6 6 Final Carried 3 | 2 2 3 3 Class Distribution -------------------- 100% | Mutant Dominant Class ---------------- Mutant | -10/Materials Mutant | -10/Mines Mutant | -9/Materials Resources | -11 -10 -10 -9 ----------- Run | Scr Mat Min Mat Matter Collected 235 | 235 . . . Remotely . | . . . . Salvage Created 74 | 57 . 17 . Parts 9 | 5 . 4 . Haulers Intercepted . | . . . . Recyclers Shooed . | . . . . Parts Field Recycled . | . . . . Retrieved Matter . | . . . . Parts Self-Destructed . | . . . . Prevented . | . . . . Kills | -11 -10 -10 -9 ------- Run | Scr Mat Min Mat Combat Hostiles Destroyed . | . . . . Classes Destroyed 2 | 1 . 1 . Builder 1 | . . 1 . Recycler 1 | 1 . . . Best Kill Streak 1 | 1 . 1 . Combat Bots Only . | . . . . Max Kills in Single Turn 1 | 1 . 1 . Gunslinging . | . . . . Exploded . | . . . . Melee . | . . . . Uniques/NPCs Destroyed . | . . . . Combat | -11 -10 -10 -9 -------- Run | Scr Mat Min Mat Damage Taken 37 | . . . 37 Core 29 | . . . 29 Absorbed by Shields . | . . . . Core Remaining (%) 100 | 100 . 100 . Volleys Fired 22 | 1 . 3 18 Largest 2 | 2 . 1 2 Hottest 80 | 80 . 33 80 Shots Fired 25 | 2 . 3 20 Gun 6 | 2 . . 4 Cannon . | . . . . Launcher 19 | . . 3 16 Special . | . . . . Kinetic . | . . . . Thermal . | . . . . Explosive 19 | . . 3 16 Electromagnetic 6 | 2 . . 4 Robot Hit Streak 3 | 2 . . 3 Robot Miss Streak 1 | . . . 1 Penetration Max . | . . . . Secondary Targets . | . . . . Shots Hit Robots 5 | 2 . . 3 Core Hits 3 | 2 . 1 . Critical Hits . | . . . . Critical Kills . | . . . . Critical Parts Destroyed . | . . . . Melee Attacks . | . . . . Impact . | . . . . Slashing . | . . . . Piercing . | . . . . Sneak Attacks . | . . . . Combat Hostiles . | . . . . Follow-up Attacks . | . . . . Damage Inflicted 147 | 25 . 81 41 Guns 66 | 25 . . 41 Cannons . | . . . . Explosions 81 | . . 81 . Melee . | . . . . Ramming . | . . . . Kinetic . | . . . . Thermal . | . . . . Explosive 81 | . . 81 . Electromagnetic 66 | 25 . . 41 Impact . | . . . . Slashing . | . . . . Piercing . | . . . . Highest Corruption . | . . . . Average Corruption . | . . . . Corruption Purged . | . . . . Overload Shots . | . . . . Overflow Damage . | . . . . Projectiles . | . . . . Explosions . | . . . . Melee . | . . . . Knockbacks . | . . . . Impact . | . . . . Kinetic . | . . . . Secondary . | . . . . Self-Inflicted Damage 39 | . . . 39 Shots 2 | . . . 2 Rammed . | . . . . Targets Rammed . | . . . . Kicked . | . . . . Crushed . | . . . . Highest Temperature 41 | 18 . . 41 Average Temperature 19 | 12 . . 23 Received Heat Transfer . | . . . . Siege Activations . | . . . . Robots Corrupted . | . . . . Combat Hostiles . | . . . . Parts Fried . | . . . . Impact Corruptions . | . . . . Robots Melted . | . . . . Combat Hostiles . | . . . . Parts Melted . | . . . . Heat Transferred . | . . . . Parts Sabotaged . | . . . . Parts Stolen . | . . . . Parts Stripped . | . . . . Power Chain Reactions . | . . . . Missiles Intercepted . | . . . . Alert | -11 -10 -10 -9 ------- Run | Scr Mat Min Mat Peak Influence 56 | 5 3 5 56 Initial 3 | . 3 . 1 Average 9 | 2 3 1 19 Maximum Alert Level . | . . . . Low Security (%) 100 | 100 100 100 100 Level 1 . | . . . . Level 2 . | . . . . Level 3 . | . . . . Level 4 . | . . . . Level 5 . | . . . . High Security . | . . . . Max Security . | . . . . Squads Dispatched . | . . . . Investigation . | . . . . Extermination . | . . . . Reinforcement . | . . . . Assault . | . . . . Garrison . | . . . . Intercept . | . . . . Construction Impeded . | . . . . Haulers Reinforced . | . . . . Stealth | -11 -10 -10 -9 --------- Run | Scr Mat Min Mat Distress Signals 1 | . 1 . . Communications Jammed . | . . . . Distress Signals . | . . . . Times Spotted 2 | . 2 . . Peak Tracking Total 2 | . 2 . . Tactical Retreats . | . . . . Traps | -11 -10 -10 -9 ------- Run | Scr Mat Min Mat Traps Triggered . | . . . . Indirectly . | . . . . Trap Hack Attempts . | . . . . Triggered . | . . . . Disarmed . | . . . . Reprogrammed . | . . . . Reused . | . . . . Traps Extracted . | . . . . Installed . | . . . . Triggered . | . . . . Machines | -11 -10 -10 -9 ---------- Run | Scr Mat Min Mat Machines Disabled 3 | . . . 3 Max in Single Turn 1 | . . . 1 Machines Sabotaged . | . . . . Garrisons Compromised . | . . . . Overloaded Fab Kills . | . . . . Fab Network Shutdowns . | . . . . Hacking | -11 -10 -10 -9 --------- Run | Scr Mat Min Mat Machines Accessed 1 | . . . 1 Terminals 1 | . . . 1 Fabricators . | . . . . Repair Stations . | . . . . Recycling Units . | . . . . Scanalyzers . | . . . . Garrison Access . | . . . . Total Hacks 2 | . . . 2 Successful 2 | . . . 2 Failed . | . . . . Catastrophic . | . . . . Database Lockouts . | . . . . Manual . | . . . . Terminals 2 | . . . 2 Fabricators . | . . . . Repair Stations . | . . . . Recycling Units . | . . . . Scanalyzers . | . . . . Garrison Access . | . . . . Terminal Hacks 2 | . . . 2 Prototype ID Bank 1 | . . . 1 Zone Layout 1 | . . . 1 Fabricator Hacks . | . . . . Repair Station Hacks . | . . . . Recycling Unit Hacks . | . . . . Scanalyzer . | . . . . Garrison Access Hacks . | . . . . Unauthorized Hacks . | . . . . Terminals . | . . . . Fabricators . | . . . . Repair Stations . | . . . . Recycling Units . | . . . . Scanalyzers . | . . . . Garrison Access . | . . . . Data Cores Recovered . | . . . . Used . | . . . . Hacking Detections 1 | . . . 1 Full Trace Events . | . . . . Feedback Events . | . . . . Feedback Blocked . | . . . . Robot Schematics Acquired . | . . . . Robots Built . | . . . . Matter . | . . . . Time . | . . . . Total Robot Build Rating . | . . . . Part Schematics Acquired . | . . . . Parts Built . | . . . . Matter . | . . . . Time . | . . . . Total Part Build Rating . | . . . . Parts Repaired . | . . . . Time . | . . . . Parts Recycled . | . . . . Recycled Matter . | . . . . Retrieved Matter . | . . . . Retrieved Components . | . . . . Parts Scanalyzed . | . . . . Part Schematics Acquired . | . . . . Parts Damaged . | . . . . Bothacking | -11 -10 -10 -9 ------------ Run | Scr Mat Min Mat Used RIF Installer . | . . . . Robots Hacked . | . . . . Non-combat . | . . . . Combat . | . . . . Robot Hacks Applied . | . . . . Relay Couplers Released . | . . . . Robots Rewired . | . . . . Allies Hacked . | . . . . Hacks Repelled . | . . . . Allies | -11 -10 -10 -9 -------- Run | Scr Mat Min Mat Total Allies . | . . . . Largest Group . | . . . . Highest-Rated Group . | . . . . Highest-Rated Ally . | . . . . Total Orders . | . . . . Ally Attacks . | . . . . Total Damage . | . . . . Kills . | . . . . Allies Corrupted . | . . . . Allies Melted . | . . . . Intel | -11 -10 -10 -9 ------- Run | Scr Mat Min Mat Robot Analysis Total . | . . . . Derelict Logs Recovered . | . . . . Drone Launches . | . . . . Drone Recoveries . | . . . . Exploration | -11 -10 -10 -9 ------------- Run | Scr Mat Min Mat Turns Passed 341 | 79 47 72 143 Spaces Moved 255 | 52 48 54 101 Core 15 | 15 . . . Treads 14 | 14 . . . Legs . | . . . . Wheels 226 | 23 48 54 101 Hover . | . . . . Flight . | . . . . Fastest Speed 50 | 50 100 100 100 Average Speed 100 | 101 100 100 100 Slowest Speed 160 | 160 100 100 100 Overloaded Moves . | . . . . Propulsion Burnouts . | . . . . Robots Hopped . | . . . . Cave-ins Triggered . | . . . . Exploration Rate (%) 12 | 3 18 22 7 Regions Visited 3 Branch Regions 1 Pre-discovered Areas . | . . . . Known Exits Taken . | . . . . Unknown Exits Taken 3 | 1 1 1 . Scrap Searched . | . . . . Spaces Dug 41 | . . 10 31 Terrain Destroyed 220 | . . 34 186 Melee . | . . . . Projectile . | . . . . AOE 220 | . . 34 186 Terrain Rammed . | . . . . Walls Destroyed . | . . . . Machines Disabled . | . . . . Actions | -11 -10 -10 -9 --------- Run | Scr Mat Min Mat Total 316 | 78 47 69 122 Wait 10 | . . 8 2 Move 252 | 51 47 53 101 Hop . | . . . . Pick Up 12 | 11 . 1 . Fast Attach 2 | 2 . . . Attach 9 | 7 . 2 . Detach 3 | 1 . 2 . Swap 1 | . . . 1 Drop 5 | 5 . . . Fire 22 | 1 . 3 18 Melee . | . . . . Ram . | . . . . Kick . | . . . . Crush . | . . . . Escape Stasis . | . . . . Rewire . | . . . . Trap . | . . . . Miscellaneous . | . . . . Route ------- -11/Scrapyard -10/Materials (discovered 2 exits: [*Min x2]) -10/Mines -9/Materials History --------- Turn | Location | Event 3 | -11/Scrapyard | Discovered new exit (range 15) 80 | -11/Scrapyard | Entered Materials 99 | -10/Materials | Discovered new exit (range 16) 120 | -10/Materials | Discovered new exit (range 8) 127 | -10/Materials | Entered Mines 134 | -10/Mines | Received a Rocket Launcher from a helpful Derelict 188 | -10/Mines | Discovered new exit (range 10) 199 | -10/Mines | Entered Materials 199 | -9/Materials | Evolved 2 slots: Power x1, Utility x1 303 | -9/Materials | Build established: Mutant 342 | -9/Materials | Self-destructed Last Messages --------------- 00196_ R-06 Scavenger collects Lgt. Ion Engine. PARAMETERS=POWER_1,UTILITY_1 LOCATION=UNKNOWN GOAL=ESCAPE 00209_ K-01 Serf collects debris. 00252_ Connecting with Terminal... 00252_ Current location identified: Materials >>Layout(Zone) Retrieving Zone 9G layout... Downloaded map data. >>Prototypes Downloading prototype IDs... Adv. Beam Cannon Imp. EM Shotgun 00274_ Hadron Collector disabled. 00296_ The unstable cave ceiling collapses. 00308_ Hadron Collector disabled. 00318_ The unstable cave ceiling collapses. 00328_ Terminal disabled. 00330_ The unstable cave ceiling collapses. Map ----- +----------------------------------------------------+ | | | ??????????????????????????????????????? | | ??????????????????????????????????????? | | ??????????????????????????????????????? | | ????????????####??????????????????????? | | ????????????# # #?????????????????????? | | ???????????## ###???????????????????? | | ???????????# #???????????????????? | | ???????????# # #####???###?????????? | | ???????????# #### #?????????? | | ????????# # # "" ## ##????????? | | ????????# "" ######???? | | ?????????# "" ## #???? | | ?????????# ## #???? | | ????????# """ ## #???? | | ????????##### """" # #?# #???? | | ?????????### # """ ## ##?# #???? | | ?????????# ## #??# #???? | | ????????# # # ####### #??# #???? | | ???????# # #?????# #??# #???? | | ???????# # ##?????# #??# #???? | | ??????# ###??????# #??# #???? | | ????? #???????# #??# #???? | | ???# # #???????# #??# #???? | | ??# ##??????## #??# #???? | | ??# #????????# @ #??# #???? | | ??# #?????????# ## #???? | | ??? #??????????# ### #???? | | ??? #???????????# #?# #???? | | ????? ????????????# ### #???? | | ??????? ?????????????## #???? | | ??????????????????????? #???? | | ???????????????????????# #???? | | ???????????????????????######## #???? | | ??????????????????????????????# #???? | | ??????????????????????????????# #???? | | ??????????????????????????????# #???? | | ?????????????????????????????? #???? | | ?????????????????????????????? #???? | | ?????????????????????????????? #???? | | ?????????????????????????????? !#???? | | ??????????????????????????????" #???? | | ??????????????????????????????" #???? | | ??????????????????????????????" #???? | | ??????????????????????????????? #???? | | ???????????????????????????????[ #???? | | ??????????????????????????????? ????? | | ??????????????????????????????????????? | | ??????????????????????????????????????? | | ??????????????????????????????????????? | +----------------------------------------------------+ Best States ------------- Heat Dissipation 28 Energy Generation 10 Energy Capacity 250 Matter Stores 245 Matter Capacity 300 Sight Range 16 Terrain Scan Density 10 Evasion (%) 50 Recoil Reduction 2 Item Schematics ----------------- None Robot Schematics ------------------ None Fabricated ------------ Nothing Alien Tech Used ----------------- None Achievements -------------- None Challenges ------------ None Game ------ Seed easymode Manual? 1 Play Time 00:06:43 Cumulative 14.9 hours Start 2021.11.29 @ 18:28:53 End 2021.11.29 @ 19:01:24 Sessions 1 Manual Loads 0 Difficulty Rogue Special Mode None Game No. 29 Rogue 29 Adventurer 0 Explorer 0 Win Type - Total 0 Types 0/0/0/0/0/0/0/0/0 Lore% 13 Gallery% 21 Achievement% 17 Wizard Run 0 Options --------- ASCII 0 Keyboard 0 Movement Mouse Keybinds 0 Fullscreen 2 Font 24/Smallcaps Map View 76x50 Tactical HUD 1 Map Filters NONE Filters NONE Steam 1 RUN: 5ef55a4c-5fb1-46f3-8718-f861ddc53419